bitfinex/quotes_SOLUSD_20250518
["timestamp","ask_amount","ask_price","bid_price","bid_amount"]
[1747537381801,5.97306576,167.42,167.33,18.64964886]
[1747537382131,138.2,167.43,167.35,18.64964886]
[1747537382308,10.30302746,167.44,167.35,18.64964886]
[1747537382509,10.30302746,167.43,167.35,18.64964886]
[1747537382896,5.97193191,167.45,167.35,25.21454886]
[1747537383328,16.27495937,167.45,167.35,25.21454886]
[1747537383491,10.30302746,167.44,167.37,18.64964886]
[1747537383999,10.30302746,167.5,167.39,18.64964886]
[1747537384320,1.5349,167.51,167.39,18.64964886]
[1747537384321,10.30302746,167.51,167.41,18.64964886]
[1747537384818,36.30302746,167.51,167.41,18.64964886]
[1747537385429,42.27291418,167.51,167.43,18.64964886]
[1747537385593,138.2,167.56,167.45,18.64964886]
[1747537385797,138.2,167.56,167.47,44.64964886]
[1747537386105,10.30302746,167.54,167.47,18.64964886]
[1747537386314,10.30302746,167.53,167.48,18.66]
[1747537386625,10.30302746,167.52,167.48,18.66]
[1747537386804,10.30302746,167.54,167.48,18.66]
[1747537387135,10.30302746,167.51,167.44,6.5649]
[1747537387300,10.30302746,167.5,167.45,18.66]
[1747537387504,10.30302746,167.49,167.45,18.66]
[1747537387699,5.97027155,167.5,167.39,10.32194432]
[1747537387700,10.30302746,167.47,167.41,18.72]
[1747537388205,10.30302746,167.49,167.42,18.64964886]
[1747537389022,5.97027155,167.5,167.42,18.64964886]
[1747537389529,5.96979284,167.51,167.43,5.97264528]
[1747537389711,16.2728203,167.51,167.43,5.97264528]
[1747537390224,5.96979284,167.51,167.43,5.97264528]
[1747537390426,16.2728203,167.51,167.43,5.97264528]
[1747537390921,16.2728203,167.51,167.44,5.97227429]
[1747537391321,10.30302746,167.5,167.44,18.64964886]
[1747537392617,10.30302746,167.51,167.44,5.97227811]
[1747537392816,40.92322476,167.53,167.44,5.97227811]
[1747537392817,10.30302746,167.53,167.44,5.97227811]
[1747537393123,16.27139511,167.55,167.46,18.64964886]
[1747537393295,16.27139511,167.55,167.48,18.64964886]
[1747537394232,10.30302746,167.5,167.47,18.72]
[1747537395315,10.30302746,167.49,167.44,18.72]
[1747537395498,10.30302746,167.48,167.44,18.72]
[1747537396404,5.97121872,167.47,167.44,18.72]
[1747537396909,5.97121872,167.47,167.42,1.5358]
[1747537397114,16.27424618,167.47,167.43,18.7]
[1747537398128,5.97121872,167.47,167.43,18.7]
[1747537398526,5.97014925,167.5,167.43,18.7]
[1747537398730,10.30302746,167.48,167.43,18.7]
[1747537399216,5.97014925,167.5,167.43,18.7]
[1747537399531,16.27317671,167.5,167.43,18.7]
[1747537399730,5.97014925,167.5,167.43,18.7]
[1747537399926,5.97014925,167.5,167.43,24.67254851]
[1747537400134,153.12234823,167.54,167.44,18.64964886]
[1747537400135,10.30302746,167.52,167.44,18.64964886]
[1747537400512,10.30302746,167.52,167.45,5.97193191]
[1747537400716,31.96908016,167.53,167.45,5.97193191]
[1747537400717,5.96908016,167.53,167.46,18.64964886]
[1747537400917,10.30302746,167.56,167.48,18.64964886]
[1747537401129,5.96846837,167.55,167.49,18.76]
[1747537401338,16.27149583,167.55,167.49,18.76]
[1747537401550,10.30302746,167.52,167.45,18.64964886]
[1747537401832,10.30302746,167.52,167.47,18.76]
[1747537402135,10.30302746,167.51,167.47,18.76]
[1747537402336,10.30302746,167.52,167.47,18.76]
[1747537402643,5.96979284,167.51,167.47,18.76]
[1747537403434,22.39171417,167.51,167.47,18.76]
[1747537404208,16.42192133,167.51,167.47,18.76]
[1747537404412,22.39100149,167.53,167.47,18.76]
[1747537404815,16.42192133,167.52,167.47,18.76]
[1747537405016,16.42192133,167.52,167.45,5.97182573]
[1747537405222,16.42192133,167.48,167.43,18.76]
[1747537405424,16.42192133,167.49,167.43,18.76]
[1747537405830,16.42192133,167.48,167.43,18.76]
[1747537406336,22.39314005,167.47,167.41,18.64964886]
[1747537406633,16.42192133,167.46,167.42,18.78]
[1747537407323,5.97121872,167.47,167.42,18.78]
[1747537407526,22.39314005,167.47,167.42,18.78]
[1747537409250,138.2,167.53,167.43,18.64964886]
[1747537409415,5.96694313,167.59,167.49,18.64964886]
[1747537409617,42.42192133,167.6,167.5,24.77014925]
[1747537409945,16.42192133,167.59,167.5,24.77014925]
[1747537410114,16.42192133,167.58,167.5,24.77014925]
[1747537410320,16.42192133,167.58,167.51,6.3049]
[1747537410518,16.42192133,167.57,167.52,18.82]
[1747537411033,16.42192133,167.56,167.52,18.82]
[1747537411233,16.42192133,167.54,167.51,18.82]
[1747537411614,5.96880008,167.54,167.51,18.82]
[1747537411823,16.42192133,167.57,167.51,18.82]
[1747537412527,42.42192133,167.58,167.51,18.82]
[1747537412840,16.42192133,167.57,167.51,18.82]
[1747537413035,16.42192133,167.56,167.51,18.82]
[1747537413217,5.9676553,167.57,167.51,18.82]
[1747537413421,22.38957663,167.57,167.51,18.82]
[1747537414729,31.96739293,167.58,167.51,24.78963294]
[1747537415047,48.38931426,167.58,167.51,24.78963294]
[1747537415247,5.96658711,167.6,167.52,18.64964886]
[1747537416142,22.38850844,167.6,167.52,18.64964886]
[1747537416445,16.42192133,167.6,167.53,5.96908016]
[1747537416649,16.42192133,167.61,167.53,5.96908016]
[1747537417832,154.62192133,167.62,167.55,5.96836765]
[1747537418232,31.9654279,167.64,167.56,18.64964886]
[1747537418233,5.9654279,167.64,167.56,18.64964886]
[1747537418433,22.38734923,167.64,167.57,18.82]
[1747537418822,16.42192133,167.63,167.57,18.82]
[1747537419114,16.42192133,167.63,167.58,5.9672992]
[1747537419318,16.42192133,167.63,167.54,18.64964886]
[1747537419319,16.42192133,167.6,167.54,18.64964886]
[1747537419518,16.42192133,167.6,167.55,18.84]
[1747537420146,16.42192133,167.61,167.55,18.84]
[1747537420645,16.42192133,167.62,167.55,18.84]
[1747537421458,22.38787465,167.62,167.55,24.80801302]
[1747537421654,16.42192133,167.61,167.55,24.80801302]
[1747537421950,16.42192133,167.62,167.55,24.80801302]
[1747537422952,16.42192133,167.61,167.55,24.80801302]
[1747537423148,16.42192133,167.62,167.55,24.80801302]
[1747537424768,5.96480763,167.65,167.56,18.64964886]
[1747537424947,16.42192133,167.64,167.56,18.64964886]
[1747537425149,180.62192133,167.66,167.56,18.64964886]
[1747537425331,16.42192133,167.65,167.58,18.64964886]
[1747537426749,16.42192133,167.65,167.59,5.96694313]
[1747537433764,16.42192133,167.64,167.59,5.96694313]
[1747537434759,154.62192133,167.66,167.59,5.96694313]
[1747537434966,16.42192133,167.66,167.59,5.96694313]
[1747537435153,16.42192133,167.67,167.61,18.64964886]
[1747537435352,16.42192133,167.67,167.62,18.76]
[1747537435646,16.42192133,167.68,167.62,18.76]
[1747537435852,16.42192133,167.67,167.62,18.76]
[1747537436981,16.42192133,167.67,167.62,24.72554256]
[1747537437348,16.42192133,167.68,167.62,24.72554256]
[1747537438162,22.38570868,167.68,167.62,24.72554256]
[1747537438474,16.42192133,167.67,167.62,24.72554256]
[1747537439278,10.24414425,167.67,167.62,24.72554256]
[1747537439492,10.24414425,167.68,167.62,24.72554256]
[1747537440569,16.20792706,167.68,167.62,24.72554256]
[1747537441600,10.24414425,167.68,167.62,24.72554256]
[1747537441876,164.2,167.7,167.63,18.64964886]
[1747537441877,148.44414425,167.7,167.63,18.64964886]
[1747537442582,138.2,167.7,167.64,5.96516344]
[1747537442796,5.96191711,167.74,167.65,18.64964886]
[1747537443089,10.24414425,167.72,167.65,18.64964886]
[1747537443577,138.2,167.75,167.65,18.64964886]
[1747537443775,10.24414425,167.74,167.65,18.64964886]
[1747537443969,148.44414425,167.75,167.65,18.64964886]
[1747537444184,154.40553727,167.75,167.65,18.64964886]
[1747537444674,154.40553727,167.75,167.66,5.96445186]
[1747537444875,154.40553727,167.75,167.68,18.64964886]
[1747537445061,154.40553727,167.75,167.69,18.76]
[1747537445261,144.16139302,167.75,167.69,18.76]
[1747537446182,154.40553727,167.75,167.69,18.76]
[1747537447585,154.40553727,167.75,167.69,24.723266]
[1747537449585,10.24414425,167.72,167.69,18.74]
[1747537449778,10.24414425,167.73,167.69,18.74]
[1747537450685,5.96200253,167.73,167.69,18.74]
[1747537450877,16.20614678,167.73,167.69,18.74]
[1747537451283,10.24414425,167.72,167.69,18.74]
[1747537451785,5.96200253,167.73,167.68,18.74]
[1747537451954,10.24414425,167.71,167.68,18.74]
[1747537452159,10.24414425,167.72,167.68,18.74]
[1747537453600,153.1038246,167.75,167.68,18.74]
[1747537453601,138.2,167.75,167.69,18.64964886]
[1747537453778,10.24414425,167.77,167.69,18.64964886]
[1747537453975,138.2,167.81,167.71,18.64964886]
[1747537454293,10.24414425,167.79,167.71,18.64964886]
[1747537454594,10.24414425,167.78,167.71,18.64964886]
[1747537454887,10.24414425,167.8,167.71,18.64964886]
[1747537455396,16.20370931,167.8,167.72,5.96231814]
[1747537456173,10.24414425,167.81,167.73,18.64964886]
[1747537456362,10.24414425,167.81,167.75,18.64964886]
[1747537457177,10.24414425,167.8,167.75,18.64964886]
[1747537457888,10.24414425,167.8,167.74,24.76137588]
[1747537458200,10.24414425,167.79,167.75,18.8]
[1747537458996,16.20369961,167.8,167.75,18.8]
[1747537459182,16.47242626,167.83,167.75,18.8]
[1747537459183,5.95876534,167.82,167.75,37.44964886]
[1747537459495,10.24414425,167.81,167.75,37.44964886]
[1747537460398,16.20327844,167.81,167.75,43.41083229]
[1747537461089,5.95913419,167.81,167.75,43.41083229]
[1747537461391,16.20327844,167.81,167.75,43.41083229]
[1747537463701,31.95876534,167.82,167.75,24.76118343]
[1747537463873,10.24414425,167.81,167.75,24.76118343]
[1747537465000,16.20327181,167.81,167.75,24.76118343]
[1747537465191,10.24414425,167.81,167.75,24.76118343]
[1747537465894,16.20333568,167.81,167.75,24.76118343]
[1747537466372,10.24414425,167.81,167.75,24.76118343]
[1747537467475,16.20331553,167.81,167.75,24.76118343]
[1747537467772,5.95805529,167.84,167.75,24.76118343]
[1747537467973,5.95699052,167.87,167.78,1.5497]
[1747537468165,10.24414425,167.86,167.78,1.5497]
[1747537468371,10.24414425,167.86,167.78,20.3297]
[1747537468683,10.24414425,167.85,167.78,20.3297]
[1747537468873,10.24414425,167.86,167.78,20.3297]
[1747537469274,10.24414425,167.86,167.79,5.95983074]
[1747537469820,16.20153373,167.86,167.79,5.95983074]
[1747537469986,10.24414425,167.85,167.79,5.95983074]
[1747537470700,163.222,167.91,167.8,18.64964886]
[1747537470905,156.98,167.91,167.81,18.78]
[1747537471207,16.20051222,167.89,167.82,5.95876534]
[1747537472208,10.24414425,167.89,167.82,5.95876534]
[1747537472411,5.95592614,167.9,167.82,5.95876534]
[1747537472615,10.24414425,167.89,167.82,5.95876534]
[1747537473108,5.95592614,167.9,167.82,5.95876534]
[1747537473283,10.24414425,167.89,167.82,5.95876534]
[1747537473485,138.2,167.91,167.82,5.95876534]
[1747537473486,5.95699052,167.87,167.82,5.95876534]
[1747537474897,10.24414425,167.88,167.82,5.95876534]
[1747537475422,10.24414425,167.87,167.81,18.78]
[1747537475719,10.24414425,167.87,167.81,24.73902745]
[1747537477421,16.2013709,167.87,167.81,24.73902745]
[1747537477805,5.95722665,167.87,167.81,24.73902745]
[1747537477997,16.2013709,167.87,167.81,24.73902745]
[1747537480719,10.24414425,167.86,167.79,2.93565062]
[1747537480909,10.24414425,167.84,167.79,18.74]
[1747537481421,10.24414425,167.84,167.79,18.76]
[1747537481616,10.24414425,167.85,167.79,18.76]
[1747537482219,5.95805529,167.84,167.79,18.76]
[1747537482821,16.20219954,167.84,167.79,18.76]
[1747537485800,10.24414425,167.8,167.76,18.74]
[1747537486212,10.24414425,167.8,167.74,7.54832235]
[1747537486408,10.24414425,167.8,167.75,18.74]
[1747537487111,20.85319351,167.84,167.75,18.74]
[1747537487330,10.24414425,167.81,167.75,18.74]
[1747537487523,5.95947556,167.8,167.75,18.74]
[1747537488599,10.24414425,167.81,167.75,18.74]
[1747537489330,10.24414425,167.81,167.75,24.70100549]
[1747537491241,10.24414425,167.77,167.73,6.2101]
[1747537491445,26.0,167.83,167.71,4.2275821]
[1747537491446,10.24414425,167.75,167.71,4.2275821]
[1747537491617,10.24414425,167.75,167.71,22.9675821]
[1747537492133,10.24414425,167.75,167.71,28.93022601]
[1747537492931,138.2,167.86,167.72,18.64964886]
[1747537493111,144.15770032,167.85,167.72,18.64964886]
[1747537493304,10.24414425,167.83,167.72,18.64964886]
[1747537493708,10.24414425,167.82,167.74,18.64964886]
[1747537494516,5.95628089,167.89,167.76,18.64964886]
[1747537494717,10.24414425,167.88,167.78,18.64964886]
[1747537494929,10.24414425,167.89,167.82,18.64964886]
[1747537495114,10.24414425,167.92,167.84,24.85974886]
[1747537495709,5.95497127,167.93,167.85,5.95770032]
[1747537495951,139.8409,167.97,167.86,18.64964886]
[1747537496229,145.79443121,167.97,167.86,18.64964886]
[1747537496436,10.24414425,167.94,167.86,18.64964886]
[1747537496933,10.24414425,167.93,167.86,18.64964886]
[1747537497228,16.33935598,167.93,167.87,5.95699052]
[1747537498128,16.33935598,167.92,167.87,5.95699052]
[1747537498534,16.33935598,167.92,167.85,20.85195113]
[1747537499257,5.95450415,167.95,167.85,20.85195113]
[1747537499460,16.33935598,167.92,167.85,20.85195113]
[1747537500245,5.95379852,167.96,167.85,20.85195113]
[1747537500613,16.33935598,167.91,167.85,20.85195113]
[1747537501251,16.33935598,167.92,167.85,20.85195113]
[1747537501743,16.33935598,167.92,167.85,5.95770032]
[1747537504936,16.33935598,167.91,167.85,5.95770032]
[1747537505142,16.33935598,167.89,167.85,5.95770032]
[1747537505717,16.33935598,167.9,167.85,5.95770032]
[1747537505920,16.33935598,167.91,167.85,5.95770032]
[1747537507422,16.33935598,167.9,167.85,5.95770032]
[1747537510526,5.95450756,167.94,167.85,5.95770032]
[1747537510728,16.33935598,167.92,167.85,5.95770032]
[1747537511046,16.33935598,167.91,167.85,5.95770032]
[1747537511419,16.33935598,167.89,167.83,7.5448885]
[1747537511620,16.33935598,167.87,167.83,24.8380885]
[1747537511853,16.33935598,167.87,167.83,18.88]
[1747537512845,16.33935598,167.86,167.81,5.95907497]
[1747537514431,22.29680058,167.86,167.8,12.09079619]
[1747537514644,16.33935598,167.85,167.8,24.83929619]
[1747537519053,138.2,167.89,167.8,24.83929619]
[1747537519364,10.21998705,167.87,167.8,24.83929619]
[1747537519655,10.21998705,167.86,167.8,24.83929619]
[1747537523460,5.95673025,167.88,167.8,24.83929619]
[1747537523637,10.21998705,167.86,167.8,24.83929619]
[1747537526766,10.21998705,167.84,167.8,5.95929619]
[1747537527263,10.21998705,167.83,167.78,18.84]
[1747537527456,10.21998705,167.83,167.77,5.96054121]
[1747537527960,10.21998705,167.84,167.77,5.96054121]
[1747537528468,16.17810423,167.84,167.77,5.96054121]
[1747537529748,10.21998705,167.83,167.77,5.96054121]
[1747537529961,10.21998705,167.81,167.77,5.96054121]
[1747537530162,5.95811718,167.84,167.77,5.96054121]
[1747537530352,10.21998705,167.81,167.77,5.96054121]
[1747537530550,10.21998705,167.82,167.77,5.96054121]
[1747537532040,5.95770032,167.85,167.77,5.96054121]
[1747537532370,10.21998705,167.82,167.77,5.96054121]
[1747537534271,10.21998705,167.81,167.77,5.96054121]
[1747537534569,10.21998705,167.79,167.74,18.84]
[1747537534868,10.21998705,167.79,167.74,5.96160724]
[1747537537079,10.21998705,167.8,167.74,5.96160724]
[1747537542963,10.21998705,167.79,167.74,5.96160724]
[1747537543353,5.95918899,167.81,167.74,5.96160724]
[1747537543654,10.21998705,167.79,167.74,5.96160724]
[1747537543869,10.21998705,167.78,167.74,5.96160724]
[1747537544069,5.95956673,167.8,167.73,5.96196267]
[1747537544271,10.21998705,167.78,167.73,5.96196267]
[1747537545882,10.21998705,167.79,167.73,5.96196267]
[1747537547087,16.17994668,167.79,167.73,5.96196267]
[1747537548385,16.17994668,167.79,167.72,26.34790762]
[1747537549273,10.21998705,167.78,167.71,12.39724986]
[1747537549584,10.21998705,167.77,167.72,3.39284742]
[1747537550669,16.18083569,167.77,167.71,31.15724986]
[1747537551183,5.96084864,167.77,167.71,31.15724986]
[1747537551786,16.18083569,167.77,167.71,31.15724986]
[1747537552969,16.18083569,167.77,167.71,12.39724986]
[1747537553487,10.21998705,167.77,167.71,12.39724986]
[1747537554300,16.18060632,167.77,167.71,12.39724986]
[1747537554965,10.21998705,167.76,167.7,27.72329365]
[1747537556976,16.1810864,167.76,167.71,3.39649628]
[1747537558176,16.1810864,167.76,167.7,24.70292384]
[1747537558491,10.21998705,167.75,167.7,24.70292384]
[1747537558687,10.21998705,167.74,167.68,5.7623821]
[1747537558890,10.21998705,167.72,167.68,4.2275821]
[1747537559479,10.21998705,167.72,167.67,6.307]
[1747537559682,10.21998705,167.72,167.66,24.68444927]
[1747537560681,10.21998705,167.72,167.67,9.3664893]
[1747537562386,10.21998705,167.72,167.66,24.68419733]
[1747537562587,10.21998705,167.71,167.66,24.68419733]
[1747537563882,10.21998705,167.69,167.64,20.3559]
[1747537564078,10.21998705,167.69,167.64,1.6359]
[1747537564998,10.21998705,167.69,167.64,7.6010009]
[1747537565498,16.18344892,167.69,167.64,7.6010009]
[1747537569202,16.18344892,167.69,167.64,1.6359]
[1747537572213,16.18344892,167.69,167.64,7.60098321]
[1747537572509,10.21998705,167.69,167.64,7.60098321]
[1747537573481,10.21998705,167.73,167.65,37.36964886]
[1747537574503,16.18216736,167.73,167.66,5.96445186]
[1747537574701,10.21998705,167.73,167.66,5.96445186]
[1747537574879,144.16128115,167.75,167.67,18.64964886]
[1747537575080,154.3812682,167.75,167.67,18.64964886]
[1747537575787,10.21998705,167.74,167.67,18.64964886]
[1747537576401,10.21998705,167.74,167.68,5.96374045]
[1747537576793,16.18161292,167.74,167.68,5.96374045]
[1747537583610,10.21998705,167.7,167.65,18.7]
[1747537585103,138.2,167.75,167.65,44.64964886]
[1747537585287,138.2,167.79,167.7,18.64964886]
[1747537585492,138.2,167.79,167.72,18.64964886]
[1747537586298,12.01220264,167.84,167.73,7.7037]
[1747537586498,10.21998705,167.84,167.74,18.64964886]
[1747537587009,10.21998705,167.84,167.76,18.64964886]
[1747537588209,10.21998705,167.83,167.76,18.64964886]
[1747537589209,10.21998705,167.82,167.73,7.7037]
[1747537589382,10.21998705,167.81,167.76,18.78]
[1747537590297,10.21998705,167.81,167.76,24.74073541]
[1747537590901,5.95843035,167.83,167.76,24.74073541]
[1747537591201,10.21998705,167.82,167.76,24.74073541]
[1747537593007,10.21998705,167.84,167.76,24.74073541]
[1747537594116,10.21998705,167.85,167.78,5.96018595]
[1747537595789,10.21998705,167.85,167.77,5.96054121]
[1747537597824,10.21998705,167.84,167.77,5.96054121]
[1747537600823,10.21998705,167.82,167.77,24.61019007]
[1747537601007,10.21998705,167.82,167.77,5.96054121]
[1747537602429,16.17876198,167.82,167.77,5.96054121]
[1747537602611,16.17876198,167.82,167.76,37.42964886]
[1747537604118,10.21998705,167.8,167.74,24.64158698]
[1747537604420,5.95983074,167.79,167.75,18.72]
[1747537605423,16.17981779,167.79,167.75,18.72]
[1747537608912,16.17981779,167.79,167.73,13.66559739]
[1747537612829,10.21998705,167.82,167.73,13.66559739]
[1747537613020,10.21998705,167.8,167.73,13.66559739]
[1747537614633,16.17959325,167.8,167.73,13.66559739]
[1747537616931,5.95876534,167.82,167.73,13.66559739]
[1747537617138,10.21998705,167.8,167.73,13.66559739]
[1747537617934,154.65362961,167.84,167.73,13.66559739]
[1747537617935,154.37834073,167.84,167.74,18.64964886]
[1747537618125,154.37834073,167.84,167.74,44.64964886]
[1747537618324,138.2,167.84,167.74,44.64964886]
[1747537618537,144.15811437,167.84,167.74,44.64964886]
[1747537618730,144.15811437,167.84,167.75,3.3867451]
[1747537618934,144.15811437,167.84,167.77,18.64964886]
[1747537620245,144.15811437,167.84,167.78,9.34693105]
[1747537620748,154.37810142,167.84,167.78,9.34693105]
[1747537620917,148.41998705,167.84,167.78,9.34693105]
[1747537621641,138.2,167.84,167.78,28.04693105]
[1747537622141,138.2,167.84,167.78,24.66018595]
[1747537622332,138.2,167.84,167.79,20.22934886]
[1747537622534,10.21998705,167.89,167.79,26.50454886]
[1747537622938,10.21998705,167.89,167.82,26.0]
[1747537623941,10.21998705,167.88,167.81,18.64964886]
[1747537624248,16.17733245,167.86,167.79,32.46405806]
[1747537626751,10.21998705,167.86,167.79,32.46405806]
[1747537627635,16.17703543,167.87,167.8,3.3880111]
[1747537628457,10.21998705,167.86,167.8,3.3880111]
[1747537628657,5.95704838,167.87,167.79,13.81465866]
[1747537628658,10.21998705,167.85,167.79,13.81465866]
[1747537630457,16.17775481,167.85,167.79,13.81465866]
[1747537631831,10.21998705,167.86,167.79,13.81465866]
[1747537632231,10.21998705,167.86,167.8,3.39641119]
[1747537632643,5.95628089,167.89,167.8,3.39641119]
[1747537632851,10.21998705,167.87,167.8,3.39641119]
[1747537633162,138.2,167.88,167.81,18.64964886]
[1747537633456,138.2,167.88,167.81,22.04606005]
[1747537633830,138.2,167.88,167.82,5.95876534]
[1747537635053,154.37665786,167.88,167.83,3.39641119]
[1747537636460,154.37665786,167.88,167.83,9.35475274]
[1747537636760,154.37665786,167.88,167.83,5.95834155]
[1747537637063,16.17665786,167.88,167.83,5.95834155]
[1747537637960,10.21998705,167.88,167.83,5.95834155]
[1747537638437,10.21998705,167.88,167.82,5.95876534]
[1747537638947,16.17666788,167.88,167.82,5.95876534]
[1747537639271,10.21998705,167.86,167.8,24.60912442]
[1747537640765,10.21998705,167.86,167.81,3.39366201]
[1747537641765,10.21998705,167.86,167.81,9.35267424]
[1747537642064,16.17735478,167.86,167.8,5.95941306]
[1747537642435,5.95736773,167.86,167.8,5.95941306]
[1747537642642,16.17735478,167.86,167.8,5.95941306]
[1747537643660,10.21998705,167.86,167.8,5.95941306]
[1747537643962,10.21998705,167.88,167.8,5.95941306]
[1747537644660,10.21998705,167.86,167.8,5.95941306]
[1747537645237,10.21998705,167.84,167.81,3.39415263]
[1747537646477,16.17807128,167.84,167.81,3.39415263]
[1747537646690,16.17807128,167.84,167.76,4.2275821]
[1747537646691,10.21998705,167.83,167.76,4.2275821]
[1747537646982,10.21998705,167.78,167.76,4.2275821]
[1747537649043,5.95876534,167.82,167.76,4.2275821]
[1747537649368,5.95876534,167.82,167.75,5.96091106]
[1747537649369,10.21998705,167.81,167.75,5.96091106]
[1747537649869,5.95876534,167.82,167.75,5.96091106]
[1747537650167,10.21998705,167.81,167.75,5.96091106]
[1747537650370,16.17939385,167.81,167.74,24.6112561]
[1747537650967,138.2,167.83,167.74,24.6112561]
[1747537651169,148.41998705,167.83,167.74,24.6112561]
[1747537651864,10.21998705,167.82,167.74,24.6112561]
[1747537652671,16.17889312,167.82,167.76,5.96089651]
[1747537653656,16.17889312,167.82,167.75,5.96125186]
[1747537653861,10.21998705,167.81,167.75,5.96125186]
[1747537654367,10.21998705,167.8,167.75,5.96125186]
[1747537654551,10.21998705,167.8,167.74,5.9615131]
[1747537655246,138.2,167.87,167.75,18.64964886]
[1747537655468,144.15710268,167.87,167.78,18.64964886]
[1747537655677,144.15710268,167.87,167.79,18.72]
[1747537655975,154.37708973,167.87,167.8,5.95947556]
[1747537656160,10.21998705,167.86,167.8,5.95947556]
[1747537656470,144.15710268,167.87,167.8,5.95947556]
[1747537656665,148.41998705,167.87,167.8,5.95947556]
[1747537657169,138.2,167.87,167.8,5.95947556]
[1747537657682,138.2,167.87,167.81,3.39950098]
[1747537658268,5.95616906,167.9,167.82,5.95876534]
[1747537658456,16.17615611,167.9,167.82,5.95876534]
[1747537658650,144.55415119,167.91,167.83,18.64964886]
[1747537658956,154.77413824,167.91,167.83,50.83424886]
[1747537659365,154.77413824,167.91,167.84,3.39950098]
[1747537659563,154.77413824,167.91,167.85,18.74]
[1747537660277,154.77413824,167.91,167.85,24.69744356]
[1747537660673,160.72980279,167.91,167.85,24.69744356]
[1747537660973,10.21998705,167.88,167.85,18.74]
[1747537661279,160.72980279,167.91,167.85,18.74]
[1747537661485,150.50981574,167.91,167.85,18.74]
[1747537661675,160.72980279,167.91,167.85,24.69761434]
[1747537662384,6.3067,167.9,167.82,30.2275821]
[1747537662587,6.3067,167.9,167.69,18.4294072]
[1747537662588,0.4459,167.79,167.69,18.4294072]
[1747537662769,20.4399741,167.72,167.69,18.4294072]
[1747537662973,46.4399741,167.7,167.56,14.3128144]
[1747537663175,10.21998705,167.6,167.56,14.3128144]
[1747537663373,26.0,167.57,167.56,14.3128144]
[1747537663555,42.41756887,167.57,167.53,55.28822162]
[1747537663759,26.0,167.54,167.53,55.28822162]
[1747537663958,63.73756887,167.54,167.53,55.28822162]
[1747537664254,10.0,167.53,167.45,73.71762883]
[1747537664487,80.15513774,167.54,167.34,45.9021899]
[1747537664488,31.9715753,167.46,167.34,7.8649]
[1747537664667,16.41756887,167.43,167.34,7.8649]
[1747537664880,16.41756887,167.41,167.34,7.8649]
[1747537665060,16.41756887,167.36,167.31,1.19418694]
[1747537665268,47.72,167.39,167.28,9.3089167]
[1747537665464,26.0,167.35,167.28,9.3089167]
[1747537665657,21.66,167.35,167.28,9.3089167]
[1747537665858,47.66,167.35,167.28,9.3089167]
[1747537666084,16.41756887,167.31,167.23,15.38052649]
[1747537666288,47.66,167.35,167.23,14.18564869]
[1747537666564,16.41756887,167.24,167.23,14.18564869]
[1747537666965,16.41756887,167.24,167.11,1.5484]
[1747537667273,24.34699633,167.21,167.12,43.87867402]
[1747537667459,26.0,167.28,167.12,43.87867402]
[1747537667660,24.34699633,167.22,167.12,7.17936335]
[1747537667875,24.34699633,167.17,167.12,7.17936335]
[1747537668072,24.34699633,167.22,167.12,7.17936335]
[1747537668073,21.68,167.22,167.12,5.98372426]
[1747537668271,24.34699633,167.19,167.15,26.0]
[1747537668581,24.34699633,167.19,167.12,5.98372426]
[1747537668582,21.68,167.22,167.13,5.98313601]
[1747537668802,24.34699633,167.19,167.13,5.98313601]
[1747537668970,21.68,167.22,167.13,5.98313601]
[1747537669482,24.34699633,167.21,167.09,16.3174478]
[1747537669888,21.68,167.22,167.09,16.3174478]
[1747537670090,9.25646484,167.25,167.13,18.64964886]
[1747537670277,3.38780898,167.26,167.15,18.64964886]
[1747537670475,3.38780898,167.26,167.17,18.64964886]
[1747537670887,3.38780898,167.26,167.19,18.64964886]
[1747537671088,9.25646484,167.27,167.19,18.64964886]
[1747537671776,9.25646484,167.27,167.23,18.64964886]
[1747537671997,9.9451568,167.28,167.23,18.64964886]
[1747537672186,9.9451568,167.28,167.27,18.64964886]
[1747537672700,9.9451568,167.28,167.27,24.6280072]
[1747537673172,9.9451568,167.28,167.27,5.97835834]
[1747537673983,9.9451568,167.28,167.27,24.6280072]
[1747537674174,9.9451568,167.28,167.27,5.97835834]
[1747537674903,9.9451568,167.28,167.24,14.94827422]
[1747537675584,21.7,167.39,167.22,11.5719]
[1747537675585,21.7,167.39,167.25,21.7]
[1747537676402,18.64964886,167.38,167.25,36.6476831]
[1747537676696,18.64964886,167.38,167.25,42.62675634]
[1747537676895,18.64964886,167.38,167.28,26.0]
[1747537677598,18.64964886,167.35,167.25,5.97907324]
[1747537678097,26.0,167.36,167.25,20.92675634]
[1747537678923,18.64964886,167.4,167.28,26.0]